bitfinex/quotes_ETHUSD_20241003
["timestamp","ask_amount","ask_price","bid_price","bid_amount"]
[1727915940756,4.18944,2387.0,2386.9,0.00824379]
[1727915944825,4.96184,2387.0,2386.9,0.00824379]
[1727915945163,18.12050643,2387.0,2386.9,0.00824379]
[1727915945525,21.12050643,2387.0,2386.9,0.00824379]
[1727915945966,21.67050643,2387.0,2386.9,0.00824379]
[1727915946419,8.56371,2386.4,2386.3,0.5]
[1727915946677,29.72436925,2386.4,2386.3,0.5]
[1727915947374,25.63409125,2386.4,2386.3,0.5]
[1727915947528,19.17066925,2386.4,2386.3,0.5]
[1727915948174,14.70616125,2386.4,2386.3,0.5]
[1727915948327,9.289107,2386.4,2386.3,0.5]
[1727915948533,7.19041,2386.4,2386.3,0.5]
[1727915948978,4.19041,2386.4,2386.3,0.5]
[1727915949747,13.41706425,2386.4,2386.3,0.5]
[1727915950803,4.19041,2386.4,2386.3,0.5]
[1727915952261,9.86816425,2386.4,2386.3,0.5]
[1727915952460,11.27400668,2386.4,2386.3,0.5]
[1727915952776,14.82400668,2386.4,2386.3,0.5]
[1727915953458,7.19041,2386.4,2386.3,0.5]
[1727915953891,4.19041,2386.4,2386.3,1.2929]
[1727915954214,4.19041,2386.4,2386.3,1.30114379]
[1727915957817,4.19041,2386.4,2386.3,0.50824379]
[1727915958883,13.52740125,2386.4,2386.3,0.50824379]
[1727915959123,10.79040125,2386.4,2386.3,0.50824379]
[1727915959425,5.110347,2386.4,2386.3,0.50824379]
[1727915960299,4.19041,2386.4,2386.3,0.50824379]
[1727915960490,8.38059,2386.5,2386.3,1.33694379]
[1727915960687,4.19026,2386.5,2386.3,1.33694379]
[1727915961129,4.19041,2386.4,2386.3,1.33694379]
[1727915961289,4.18999,2386.7,2386.3,1.33694379]
[1727915961491,4.19041,2386.4,2386.3,1.33694379]
[1727915961690,4.19041,2386.4,2386.3,0.50824379]
[1727915962706,7.74041,2386.4,2386.3,0.50824379]
[1727915962926,10.7249982,2386.4,2386.3,0.50824379]
[1727915963126,23.549618,2386.4,2386.3,0.50824379]
[1727915963290,22.73905965,2386.4,2386.3,0.50824379]
[1727915963487,21.15584765,2386.4,2386.3,0.50824379]
[1727915964117,18.52354181,2386.4,2386.3,0.50824379]
[1727915964636,21.16049237,2386.4,2386.3,0.50824379]
[1727915964835,18.52354181,2386.4,2386.3,0.50824379]
[1727915965352,16.94906281,2386.4,2386.3,0.50824379]
[1727915965487,9.93742166,2386.4,2386.3,0.50824379]
[1727915965692,4.19041,2386.4,2386.3,1.30724379]
[1727915967300,4.19025,2386.5,2386.3,1.30724379]
[1727915967688,8.38064,2386.5,2386.3,1.30724379]
[1727915968134,4.19041,2386.4,2386.3,1.30724379]
[1727915968353,4.19041,2386.4,2386.3,0.50824379]
[1727915968493,5.028476,2386.4,2386.3,0.50824379]
[1727915969129,5.578476,2386.4,2386.3,0.50824379]
[1727915969330,7.7753369,2386.4,2386.3,0.50824379]
[1727915969502,8.028476,2386.4,2386.3,0.50824379]
[1727915970137,7.19041,2386.4,2386.3,0.50824379]
[1727915970331,4.19041,2386.4,2386.3,0.50824379]
[1727915970641,4.19025,2386.5,2386.4,0.7555]
[1727915972305,4.19025,2386.5,2386.3,0.50824379]
[1727915972634,4.19041,2386.4,2386.3,0.50824379]
[1727915972843,4.19025,2386.5,2386.4,0.7983]
[1727915973296,4.19041,2386.4,2386.3,0.50824379]
[1727915973498,4.19025,2386.5,2386.3,0.50824379]
[1727915973692,4.19041,2386.4,2386.3,0.50824379]
[1727915975336,5.028476,2386.4,2386.3,0.50824379]
[1727915975650,11.38061,2386.5,2386.4,0.7906]
[1727915975791,4.19041,2386.4,2386.3,0.50824379]
[1727915976541,5.328476,2386.4,2386.3,0.50824379]
[1727915976902,4.19041,2386.4,2386.3,0.50824379]
[1727915977250,4.19013,2386.6,2386.4,0.7804]
[1727915977396,4.19,2386.7,2386.4,0.7804]
[1727915977599,4.19,2386.7,2386.6,0.7829]
[1727915978838,4.19006,2386.6,2386.5,0.00824379]
[1727915979000,3.07301739,2387.3,2386.3,0.5]
[1727915979001,4.18981,2386.8,2386.7,0.00824379]
[1727915982037,28.40267225,2386.8,2386.7,0.00824379]
[1727915982439,26.20959625,2386.8,2386.7,0.00824379]
[1727915982603,29.51312178,2386.8,2386.7,0.00824379]
[1727915982799,16.68798978,2386.8,2386.7,0.00824379]
[1727915983005,27.93137178,2386.8,2386.7,0.00824379]
[1727915983229,26.91625178,2386.8,2386.7,0.00824379]
[1727915983433,7.96741,2386.8,2386.7,0.00824379]
[1727915983746,13.04263,2386.8,2386.7,0.00824379]
[1727915984099,7.96741,2386.8,2386.7,0.00824379]
[1727915984506,4.18981,2386.8,2386.7,0.00824379]
[1727915985849,4.18956,2386.9,2386.7,0.00824379]
[1727915985850,8.37921,2386.9,2386.7,0.00824379]
[1727915986045,8.37921,2386.9,2386.8,0.8225]
[1727915986354,8.37861,2387.1,2386.8,0.83074379]
[1727915986650,4.18953,2386.9,2386.8,0.8225]
[1727915986815,4.18996,2386.7,2386.3,0.5]
[1727915987021,4.18996,2386.7,2386.6,0.00824379]
[1727915988116,4.18971,2386.8,2386.6,0.00824379]
[1727915988460,8.3795,2386.8,2386.7,0.00824379]
[1727915988758,4.18954,2386.9,2386.7,0.00824379]
[1727915988910,0.07301739,2387.3,2386.8,0.8225]
[1727915989115,0.07301739,2387.3,2387.2,0.00824379]
[1727915989337,4.18839,2387.6,2387.2,0.00824379]
[1727915989550,4.188,2387.8,2387.7,0.00824379]
[1727915989909,5.03731244,2387.8,2387.7,0.00824379]
[1727915990111,5.82261244,2387.8,2387.7,0.00824379]
[1727915990653,4.188,2387.8,2387.7,0.00824379]
[1727915990829,7.188,2387.8,2387.7,0.00824379]
[1727915993156,4.188,2387.8,2387.7,0.00824379]
[1727915994021,7.188,2387.8,2387.7,0.00824379]
[1727915996037,4.188,2387.8,2387.7,0.00824379]
[1727916001164,0.1173144,2387.9,2387.8,0.789]
[1727916001358,0.1173144,2387.9,2387.8,0.79724379]
[1727916001990,4.3050944,2387.9,2387.8,0.79724379]
[1727916002204,4.3050944,2387.9,2387.8,0.00824379]
[1727916002345,5.95186584,2387.9,2387.8,0.00824379]
[1727916003556,13.4529006,2387.9,2387.8,0.00824379]
[1727916003947,4.18939,2387.0,2386.9,0.8003]
[1727916004157,4.19023,2386.5,2386.4,0.8003]
[1727916004395,8.14126476,2386.5,2386.4,0.8003]
[1727916004688,4.19023,2386.5,2386.4,0.8003]
[1727916004843,3.95103476,2386.7,2386.4,0.8003]
[1727916004844,4.19023,2386.6,2386.4,0.8003]
[1727916005046,4.19023,2386.5,2386.4,0.8003]
[1727916005241,4.19041,2386.4,2386.3,0.5]
[1727916005445,8.14126476,2386.5,2386.3,0.5]
[1727916005446,3.95103476,2386.5,2386.3,0.5]
[1727916005671,8.14137476,2386.5,2386.3,0.5]
[1727916005885,4.1901,2386.6,2386.3,0.5]
[1727916006247,3.95103476,2386.7,2386.3,0.5]
[1727916006471,3.95103476,2386.7,2386.4,0.8125]
[1727916006702,8.14091476,2386.7,2386.6,0.00824379]
[1727916007351,8.89121476,2386.7,2386.6,0.00824379]
[1727916007696,9.80944538,2386.7,2386.6,0.00824379]
[1727916007867,11.20937092,2386.7,2386.6,0.00824379]
[1727916008780,4.18988,2386.7,2386.6,0.00824379]
[1727916008986,4.18981,2386.8,2386.6,0.00824379]
[1727916009193,4.18988,2386.7,2386.6,0.00824379]
[1727916009650,9.05914538,2386.7,2386.6,0.00824379]
[1727916010507,9.60914538,2386.7,2386.6,0.00824379]
[1727916010709,13.98904092,2386.7,2386.6,0.00824379]
[1727916011113,14.77704092,2386.7,2386.6,0.00824379]
[1727916011324,4.19222,2385.4,2384.8,4.19311]
[1727916011470,0.788,2386.2,2384.4,0.7508]
[1727916011471,9.06223538,2385.0,2384.4,0.7508]
[1727916011669,4.86926538,2385.0,2384.4,4.94456]
[1727916011875,4.19264,2385.2,2384.5,4.19374]
[1727916012118,4.19264,2385.2,2384.5,0.494456]
[1727916012119,4.19262,2385.2,2384.5,0.494456]
[1727916012322,3.0,2385.5,2384.4,0.7508]
[1727916012323,4.19341,2384.7,2384.4,0.7508]
[1727916012623,3.0,2385.5,2384.5,4.19363]
[1727916012624,13.25419538,2385.3,2384.5,4.19363]
[1727916012912,9.06224538,2385.0,2384.4,0.7508]
[1727916013074,9.06224538,2385.0,2384.1,0.7827]
[1727916013075,4.19341,2384.7,2384.1,0.7827]
[1727916013584,4.19378,2384.5,2384.1,0.7827]
[1727916013796,8.38769,2384.5,2384.1,0.7827]
[1727916014001,9.06275538,2384.7,2384.1,0.7827]
[1727916014402,9.06275538,2384.7,2384.6,0.00824379]
[1727916014583,10.38835392,2384.7,2384.6,0.00824379]
[1727916015011,27.08156392,2384.7,2384.6,0.00824379]
[1727916015303,4.19491,2383.9,2383.5,0.7517]
[1727916015466,9.06381538,2384.1,2383.5,0.7517]
[1727916015671,13.25840538,2384.1,2383.5,0.7517]
[1727916016006,4.86926538,2384.1,2383.5,0.7517]
[1727916016216,5.67266538,2384.1,2383.5,0.7517]
[1727916016369,4.19497,2383.9,2383.1,4.19609]
[1727916016573,4.86926538,2383.8,2383.2,0.8221]
[1727916016785,9.93976449,2384.4,2383.2,0.8221]
[1727916017078,4.19475,2384.0,2383.2,0.8221]
[1727916017293,4.19526,2383.7,2383.2,0.8221]
[1727916017497,4.86926538,2384.1,2383.3,4.19583]
[1727916017498,4.68165654,2384.0,2383.3,4.19583]
[1727916017667,4.68165654,2384.0,2383.2,0.90601938]
[1727916017876,4.19473,2384.0,2383.4,4.19568]
[1727916018084,4.19473,2384.0,2383.3,4.19576]
[1727916018316,4.19473,2384.0,2383.9,0.00824379]
[1727916018522,4.19606,2383.2,2382.8,0.7901]
[1727916018800,0.419606,2383.1,2382.8,0.7901]
[1727916018999,4.19606,2383.2,2382.5,0.7901]
[1727916019246,4.19637,2383.1,2382.5,0.7901]
[1727916019728,9.06566538,2383.0,2382.5,0.7901]
[1727916020077,13.26219538,2383.0,2382.5,0.7901]
[1727916020281,9.06566538,2383.0,2382.5,0.7901]
[1727916021487,4.19684,2382.8,2382.0,0.7669]
[1727916021684,8.39372,2382.8,2382.7,0.00824379]
[1727916021991,6.26075629,2382.8,2382.7,0.00824379]
[1727916022291,2.06391629,2382.8,2382.7,0.00824379]
[1727916022508,4.86926538,2383.0,2382.7,0.00824379]
[1727916022711,4.19613,2383.2,2382.7,0.00824379]
[1727916022925,3.55,2383.2,2382.7,0.00824379]
[1727916023128,7.74606,2383.2,2382.7,0.00824379]
[1727916023280,4.19579,2383.4,2382.7,0.00824379]
[1727916023281,4.19579,2383.4,2382.7,4.70712117]
[1727916023487,4.19579,2383.4,2381.9,4.1983]
[1727916023488,4.19518,2383.7,2383.3,0.00824379]
[1727916023683,4.19506,2383.8,2383.6,0.00824379]
[1727916024007,4.19506,2383.8,2383.7,0.00824379]
[1727916024308,4.98324,2384.0,2383.7,0.00824379]
[1727916024511,4.19449,2384.1,2383.7,0.00824379]
[1727916024729,9.06359538,2384.2,2383.7,0.00824379]
[1727916025104,9.06359538,2384.2,2383.9,0.00824379]
[1727916025302,9.06359538,2384.2,2384.1,0.00824379]
[1727916025538,5.03213769,2384.4,2384.1,0.00824379]
[1727916025539,4.26713769,2384.4,2384.1,0.00824379]
[1727916025733,4.19403,2384.4,2384.3,0.00824379]
[1727916026050,4.19368,2384.6,2384.3,0.00824379]
[1727916026238,5.30965439,2384.6,2384.3,0.00824379]
[1727916026439,4.19368,2384.6,2384.3,0.00824379]
[1727916026761,9.83375538,2384.8,2384.3,0.00824379]
[1727916026944,4.265871,2385.1,2384.3,4.20220379]
[1727916027265,4.19263,2385.2,2385.0,0.00824379]
[1727916027620,8.38527,2385.2,2385.0,0.00824379]
[1727916027818,4.86926538,2385.4,2385.0,0.00824379]
[1727916028054,4.19234,2385.3,2385.0,0.00824379]
[1727916028323,9.06154538,2385.4,2385.0,0.00824379]
[1727916028523,4.19245,2385.3,2385.0,0.00824379]
[1727916028756,4.19252,2385.2,2385.0,0.00824379]
[1727916029057,4.19269,2385.1,2385.0,0.00824379]
[1727916029820,9.06195538,2385.1,2385.0,0.00824379]
[1727916030259,12.61195538,2385.1,2385.0,0.00824379]
[1727916030754,16.10735838,2385.1,2385.0,0.00824379]
[1727916031059,18.35013617,2385.1,2385.0,0.00824379]
[1727916031978,18.4194423,2385.1,2385.0,0.00824379]
[1727916035079,4.19465,2384.0,2383.8,0.816]
[1727916035238,4.86926538,2384.4,2383.8,0.816]
[1727916035432,0.06767214,2383.9,2383.8,0.816]
[1727916035734,0.06743105,2383.9,2383.8,0.816]
[1727916035960,4.19431,2384.2,2383.8,0.816]
[1727916036199,0.0674393,2383.9,2383.8,0.816]
[1727916036341,4.19431,2384.2,2383.8,0.816]
[1727916036539,0.06745092,2383.9,2383.8,0.816]
[1727916036759,8.38798,2384.4,2383.8,0.816]
[1727916036969,0.06745092,2383.9,2383.8,0.816]
[1727916037293,4.1941,2384.3,2383.8,0.816]
[1727916037510,0.06727419,2383.9,2383.8,0.816]
[1727916037658,4.19396,2384.4,2383.8,0.816]
[1727916037854,4.19396,2384.4,2383.8,5.01095]
[1727916038118,7.19396,2384.4,2384.3,0.00824379]
[1727916038407,12.06322538,2384.4,2384.3,0.00824379]
[1727916038862,12.61322538,2384.4,2384.3,0.00824379]
[1727916040858,13.39712538,2384.4,2384.3,0.00824379]
[1727916041060,15.15621492,2384.4,2384.3,0.00824379]
[1727916041397,22.46099092,2384.4,2384.3,0.00824379]
[1727916041565,15.15621492,2384.4,2384.3,0.00824379]
[1727916041773,14.37231492,2384.4,2384.3,0.00824379]
[1727916042457,23.02924792,2384.4,2384.3,0.00824379]
[1727916044294,4.19551,2383.5,2383.4,0.8286]
[1727916044603,4.195,2383.8,2383.0,0.8069]
[1727916044604,4.19595,2383.3,2383.0,0.8069]
[1727916044898,4.19612,2383.2,2383.0,0.8069]
[1727916045072,4.19562,2383.5,2383.0,0.8069]
[1727916045276,0.06691391,2383.1,2383.0,5.503632]
[1727916045493,4.19528,2383.7,2383.0,5.51187579]
[1727916045668,4.19528,2383.7,2383.6,0.00824379]
[1727916045872,4.19515,2383.7,2383.6,0.00824379]
[1727916046211,4.86926538,2384.0,2383.6,0.00824379]
[1727916046212,4.19474,2384.0,2383.6,0.00824379]
[1727916046392,4.19474,2384.0,2383.7,0.8048]
[1727916046565,4.19474,2384.0,2383.9,0.00824379]
[1727916047199,4.19446,2384.1,2383.9,0.00824379]
[1727916047403,9.06349538,2384.3,2383.9,0.00824379]
[1727916047404,8.38848,2384.3,2383.9,0.00824379]
[1727916047565,8.38845,2384.3,2383.9,0.00824379]
[1727916047965,4.19449,2384.1,2383.9,0.00824379]
[1727916048221,8.38903,2384.1,2383.9,0.00824379]
[1727916048521,4.19449,2384.1,2383.9,0.00824379]
[1727916049706,4.19463,2384.0,2383.9,0.00824379]
[1727916050019,0.84379501,2384.8,2384.0,4.97015]
[1727916050020,4.19349,2384.7,2384.0,4.97015]
[1727916050320,4.19349,2384.7,2384.6,0.00824379]
[1727916051514,7.19349,2384.7,2384.6,0.00824379]
[1727916053183,12.61275538,2384.7,2384.6,0.00824379]
[1727916053379,17.01825038,2384.7,2384.6,0.00824379]
[1727916053579,14.73390342,2384.7,2384.6,0.00824379]
[1727916053979,7.19349,2384.7,2384.6,0.00824379]
[1727916054185,4.19301,2385.0,2384.6,0.81344379]
[1727916054433,0.07307694,2385.2,2384.9,0.00824379]
[1727916054434,4.26567694,2385.2,2384.9,0.00824379]
[1727916054593,4.1926,2385.2,2385.1,0.00824379]
[1727916054793,4.19239,2385.3,2385.1,0.82324379]
[1727916055005,4.19239,2385.3,2385.2,0.00824379]
[1727916055303,4.19228,2385.4,2385.2,0.00824379]
[1727916055505,4.19305,2384.9,2384.3,5.00909]
[1727916055723,4.19305,2384.9,2384.8,0.00824379]
[1727916057526,3.0,2385.3,2384.8,0.76734379]
[1727916057727,4.19229,2385.4,2385.2,0.00824379]
[1727916058037,4.19151,2385.8,2385.3,0.76734379]
[1727916058038,4.19192,2385.6,2385.3,0.76734379]
[1727916058254,4.19174,2385.7,2385.5,0.00824379]
[1727916058448,4.19148,2385.8,2385.5,0.00824379]
[1727916059046,4.19181,2385.6,2385.5,0.00824379]
[1727916059248,3.0,2385.6,2385.5,0.00824379]
[1727916060422,3.05367465,2385.6,2385.5,0.00824379]
[1727916060627,0.05367465,2385.6,2385.5,0.00824379]
[1727916061198,7.24548465,2385.6,2385.5,0.00824379]
[1727916061442,3.05367465,2385.6,2385.5,0.00824379]
[1727916061618,0.05367465,2385.6,2385.5,0.00824379]
[1727916061814,0.05367465,2385.6,2385.5,1.26445978]
[1727916062020,4.19164,2385.7,2385.5,0.83604379]
[1727916062331,0.05434905,2385.6,2385.5,0.00824379]
[1727916062652,0.05434905,2385.6,2385.5,4.95983379]
[1727916062814,4.19044,2386.4,2385.8,0.7886]
[1727916063013,4.19044,2386.4,2385.5,0.5126116]
[1727916063014,4.19016,2386.6,2386.3,0.00824379]
[1727916063233,9.1314965,2387.1,2386.5,0.00824379]
[1727916063234,4.19005,2386.7,2386.5,0.00824379]
[1727916063636,4.19006,2386.6,2386.5,0.00824379]
[1727916064126,5.51499754,2386.6,2386.5,0.00824379]
[1727916064426,6.89119754,2386.6,2386.5,0.00824379]
[1727916064823,6.89119754,2386.6,2385.7,0.7529]
[1727916064824,4.19199,2385.5,2385.4,0.7529]
[1727916065059,4.19199,2385.5,2384.8,0.7529]
[1727916065060,4.19243,2385.3,2384.8,0.7529]
[1727916065363,4.19253,2385.2,2384.8,0.7529]
[1727916065577,4.19256,2385.2,2384.8,0.7529]
[1727916066068,4.19304,2384.9,2384.8,0.7529]
[1727916066372,0.419256,2385.1,2384.6,4.19356]
[1727916066680,0.419256,2385.1,2384.5,0.8263]
[1727916066681,4.19308,2384.9,2384.5,0.8263]
[1727916066824,4.19357,2384.6,2384.5,0.8263]
[1727916067027,4.19334,2384.8,2384.5,0.8263]
[1727916068691,4.19223,2385.4,2384.8,0.8046]
[1727916068822,4.19223,2385.4,2384.8,1.304397]
[1727916069029,4.19223,2385.4,2385.3,0.00824379]
[1727916069722,8.50663,2385.4,2385.3,0.00824379]
[1727916069923,12.79228,2385.4,2385.3,0.00824379]
[1727916073256,8.50663,2385.4,2385.3,0.00824379]
[1727916073458,10.33138149,2385.4,2385.3,0.00824379]
[1727916073771,7.19223,2385.4,2385.3,0.00824379]
[1727916074178,12.466005,2385.4,2385.3,0.00824379]
[1727916074567,7.19223,2385.4,2385.3,0.00824379]
[1727916075087,7.74223,2385.4,2385.3,0.00824379]
[1727916075289,7.79206063,2385.4,2385.3,0.00824379]
[1727916075495,9.62562519,2385.4,2385.3,0.00824379]
[1727916075695,18.98197219,2385.4,2385.3,0.00824379]
[1727916076190,10.43502519,2385.4,2385.3,0.00824379]
[1727916076402,8.60146063,2385.4,2385.3,0.00824379]
[1727916077243,7.79206063,2385.4,2385.3,0.00824379]
[1727916077443,0.04983063,2385.4,2385.3,0.00824379]
[1727916077648,10.22991663,2385.4,2385.3,0.00824379]
[1727916077843,12.22699479,2385.4,2385.3,0.00824379]
[1727916078903,12.77699479,2385.4,2385.3,0.00824379]
[1727916079193,7.24199063,2385.4,2385.3,0.00824379]
[1727916079991,4.24199063,2385.4,2385.3,0.00824379]
[1727916080172,0.04983063,2385.4,2385.3,0.79404379]
[1727916080506,4.24199063,2385.4,2385.3,0.79404379]
[1727916080655,5.08538869,2385.4,2385.3,0.00824379]
[1727916081564,8.63538869,2385.4,2385.3,0.00824379]
[1727916083900,7.79199063,2385.4,2385.3,0.00824379]
[1727916085700,0.04983063,2385.4,2385.3,0.00824379]
[1727916086085,4.19191,2385.6,2385.3,0.00824379]
[1727916086294,0.04378118,2385.4,2385.3,0.00824379]
[1727916086499,0.7507,2386.1,2385.3,0.00824379]
[1727916086682,0.04206342,2385.4,2385.3,5.03167379]
[1727916086898,4.19104,2386.1,2385.4,0.8312]
[1727916087103,5.43114554,2386.5,2386.0,0.84064379]
[1727916087104,4.19076,2386.2,2386.0,0.84064379]
[1727916087327,4.19068,2386.3,2386.0,0.84064379]
[1727916087689,4.19011,2386.6,2386.0,0.92446592]
[1727916088028,4.19011,2386.6,2386.0,0.8324]
[1727916088203,4.18982,2386.8,2386.4,0.7948]
[1727916088370,4.18982,2386.8,2386.7,0.00824379]
[1727916089176,4.18955,2386.9,2386.7,0.80304379]
[1727916089566,2.74362609,2387.9,2386.8,0.00824379]
[1727916089567,4.18892,2387.3,2386.8,0.00824379]
[1727916089672,4.18892,2387.3,2387.2,0.00824379]
[1727916090313,4.18853,2387.5,2387.2,0.00824379]
[1727916090516,4.18853,2387.5,2386.9,4.9599]
[1727916090517,4.18879,2387.4,2386.9,0.7705]
[1727916090819,4.18804,2387.8,2387.4,0.00824379]
[1727916090977,4.18804,2387.8,2387.7,0.00824379]
[1727916091497,5.03735544,2387.8,2387.7,0.00824379]
[1727916092313,8.03735544,2387.8,2387.7,0.00824379]
[1727916093025,8.58735544,2387.8,2387.7,0.00824379]
[1727916093379,9.37645544,2387.8,2387.7,0.00824379]
[1727916093583,14.91619818,2387.8,2387.7,0.00824379]
[1727916093921,28.73947618,2387.8,2387.7,0.00824379]
[1727916094102,26.27151618,2387.8,2387.7,0.00824379]
[1727916094310,4.9485,2387.6,2387.5,0.00824379]
[1727916094646,4.739,2387.2,2387.1,0.00824379]
[1727916094951,29.09195074,2387.2,2387.1,0.00824379]
[1727916095188,7.73935,2387.0,2386.9,0.00824379]
[1727916095447,19.74178474,2387.0,2386.9,0.00824379]
[1727916096453,4.19182,2385.6,2385.3,0.787]
[1727916096750,4.19209,2385.5,2385.3,0.787]
[1727916096950,4.19216,2385.4,2385.3,0.787]
[1727916097110,4.1927,2385.1,2384.6,4.19345]
[1727916097309,8.38553,2385.1,2384.7,1.223545]
[1727916097554,8.38551,2385.1,2384.7,0.8042]
[1727916097765,4.19322,2384.8,2384.7,0.8042]
[1727916098111,4.1932,2384.9,2384.1,0.8042]
[1727916098311,4.19342,2384.7,2384.2,4.19414]
[1727916098561,4.19342,2384.7,2384.2,0.919291]
[1727916098756,4.19359,2384.6,2384.2,0.919291]
[1727916098924,4.19306,2384.9,2384.2,5.113461]
[1727916099257,4.19306,2384.9,2384.8,0.00824379]
[1727916099414,4.74306,2384.9,2384.8,0.00824379]
[1727916099612,6.19062827,2384.9,2384.8,0.00824379]
[1727916100525,4.74306,2384.9,2384.8,0.00824379]
[1727916102055,0.67,2384.9,2384.0,4.1945]
[1727916102260,4.19545,2383.6,2383.2,0.7667]
[1727916102414,10.52423274,2384.1,2383.2,0.7667]
[1727916102415,4.19502,2383.8,2383.2,0.7667]
[1727916102610,9.73512274,2383.6,2383.2,0.7667]
[1727916102816,5.53974274,2384.0,2383.3,0.08391625]
[1727916103107,4.19481,2383.9,2383.3,0.58857888]
[1727916103854,4.19449,2384.1,2383.5,0.7753]
[1727916104151,8.38882,2384.2,2383.5,0.7753]
[1727916104453,4.19467,2384.0,2383.6,0.50548557]
[1727916104748,4.19509,2383.8,2383.5,0.7753]
[1727916104952,4.19467,2384.0,2383.5,0.7753]
[1727916105151,4.19467,2384.0,2383.9,0.00824379]
[1727916112213,4.1971,2382.6,2382.4,0.7903]
[1727916112335,9.73544274,2383.4,2382.4,0.7903]
[1727916112336,4.19648,2383.0,2382.4,0.7903]
[1727916112535,4.19626,2383.1,2382.6,0.7903]
[1727916112743,4.19592,2383.3,2382.8,0.7903]
[1727916113053,4.19621,2383.1,2382.8,0.7903]
[1727916113221,4.19656,2382.9,2382.8,0.7903]
[1727916113417,4.19693,2382.7,2382.5,0.7842]
[1727916114059,8.39399,2382.7,2382.5,0.7842]
[1727916114262,4.19709,2382.6,2382.5,0.7842]
[1727916115128,4.19777,2382.3,2381.8,0.7779]
[1727916115324,9.73686274,2382.6,2382.2,0.00824379]
[1727916115554,4.19783,2382.2,2381.8,0.7779]
[1727916115860,8.39579,2382.2,2382.1,0.00824379]
[1727916116275,4.19783,2382.2,2382.1,0.00824379]
[1727916116924,4.19764,2382.3,2382.1,0.00824379]
[1727916117146,4.1978,2382.2,2382.1,0.00824379]
[1727916117550,4.19764,2382.3,2382.1,0.00824379]
[1727916117819,8.39539,2382.3,2382.1,0.00824379]
[1727916118023,4.1978,2382.2,2382.1,0.00824379]
[1727916118461,4.19764,2382.3,2382.1,0.00824379]
[1727916118629,4.1978,2382.2,2382.1,0.00824379]
[1727916118838,4.19764,2382.3,2382.1,0.00824379]
[1727916120410,4.19737,2382.5,2382.1,0.00824379]
[1727916120713,4.19765,2382.3,2382.2,0.8104]
[1727916120923,0.55,2382.0,2380.9,0.8104]
[1727916121073,4.19973,2381.1,2380.9,0.8104]
[1727916121270,9.73932274,2381.2,2380.9,0.8104]
[1727916121515,4.1999,2381.1,2380.9,0.8104]
[1727916121995,4.19984,2381.1,2380.9,0.8104]
[1727916122203,4.19991,2381.0,2380.9,0.8104]
[1727916122521,4.20046,2380.7,2380.4,0.832]
[1727916122722,9.74002274,2380.8,2380.6,0.00824379]
[1727916122930,11.27341394,2380.8,2380.7,0.00824379]
[1727916123225,14.82341394,2380.8,2380.7,0.00824379]
[1727916125135,7.75028,2380.8,2380.7,0.00824379]
[1727916128040,4.20028,2380.8,2380.7,0.00824379]
[1727916129050,5.53974274,2381.0,2380.7,0.00824379]
[1727916129051,9.73974274,2381.0,2380.7,0.00824379]
[1727916129832,4.19951,2381.3,2380.7,4.20852379]
[1727916130133,13.93731274,2381.7,2381.0,4.19981]
[1727916130341,9.73849274,2381.7,2381.1,0.9012847]
[1727916130489,4.19913,2381.5,2381.1,0.8173]
[1727916130943,4.19887,2381.6,2381.1,5.01703]
[1727916131150,4.19887,2381.6,2381.1,5.518758]
[1727916131838,13.93735274,2381.7,2381.1,5.518638]
[1727916132130,4.19905,2381.5,2381.1,5.518758]
[1727916132439,9.73854274,2381.7,2381.2,0.63586025]
[1727916132596,4.19904,2381.5,2381.2,0.5518758]
[1727916133108,5.53974274,2381.4,2381.1,0.8173]
[1727916134802,4.19907,2381.5,2381.1,0.8173]
[1727916134958,4.19921,2381.4,2381.1,0.8173]
[1727916135608,4.19921,2381.4,2380.7,7.48824379]
[1727916135609,4.19994,2381.0,2380.7,7.48824379]
[1727916135843,4.19954,2381.3,2380.7,4.20858379]
[1727916136044,12.73897274,2381.4,2380.9,4.20007]
[1727916136634,9.73897274,2381.4,2380.9,4.20007]
[1727916136841,9.73897274,2381.4,2380.9,8.40003]
[1727916137238,9.73897274,2381.4,2380.8,5.45271838]
[1727916137547,4.19974,2381.1,2380.8,0.8316]
[1727916138945,8.39906,2381.3,2380.8,0.8316]
[1727916139150,8.53974274,2381.4,2380.8,0.8316]
[1727916139151,4.19975,2381.1,2380.8,0.8316]
[1727916139465,4.19949,2381.3,2380.8,0.8316]
[1727916139758,0.37548,2382.0,2380.9,4.19999]
[1727916139759,4.19911,2381.5,2380.9,4.19999]
[1727916140054,4.19911,2381.5,2381.1,0.7607]
[1727916140055,4.19905,2381.5,2381.1,0.7607]
[1727916140616,4.19941,2381.3,2381.1,0.7607]
[1727916141354,4.19956,2381.2,2380.8,0.7875]
[1727916142114,4.19977,2381.1,2380.8,0.7875]
[1727916142378,4.19993,2381.0,2380.8,0.7875]
[1727916142779,13.2904572,2381.0,2380.8,0.7875]
[1727916143369,9.0903872,2381.0,2380.8,0.7875]
[1727916143565,4.19993,2381.0,2380.8,0.7875]
[1727916143766,9.76730415,2381.3,2380.8,0.7875]
[1727916143967,7.19896,2381.6,2381.0,4.19989]
[1727916144154,4.19911,2381.5,2381.0,4.19989]
[1727916144356,7.19896,2381.6,2381.0,4.19989]
[1727916144591,8.39856,2381.4,2380.8,9.68749738]
[1727916144853,5.56785415,2380.9,2380.7,0.00824379]
[1727916145056,7.98346,2380.8,2380.7,0.00824379]
[1727916145589,8.53346,2380.8,2380.7,0.00824379]
[1727916145795,10.36361742,2380.8,2380.7,0.00824379]
[1727916145955,4.20187,2379.9,2379.6,0.7616]
[1727916146156,8.40383,2379.9,2379.6,0.7616]
[1727916146357,8.40381,2379.9,2379.6,0.7616]
[1727916146611,4.20187,2379.9,2379.6,0.7616]
[1727916146790,8.40384,2379.9,2379.6,0.7616]
[1727916146991,4.20187,2379.9,2379.6,0.7616]
[1727916147358,9.76947415,2380.1,2379.6,0.7616]
[1727916147758,9.76946415,2380.1,2379.6,0.84563951]
[1727916148093,4.2018,2380.0,2379.6,0.7616]
[1727916148307,4.20185,2379.9,2379.6,0.7616]
[1727916148505,8.40379,2379.9,2379.6,0.7616]